fUST/lending_fUST_20240818
["ID","MTS","AMOUNT","RATE_DAILY","PERIOD"]
[335186077,1723951799961,90.28622049,0.00014519,2]
[335186078,1723951799988,64.42755902,0.00014519,2]
[335186355,1723951838540,-30.73875528,0.000176,2]
[335186357,1723951838550,-250.0,0.00017646,2]
[335186358,1723951838561,-250.0,0.00017695,2]
[335186360,1723951838571,-300.0,0.00017696,2]
[335186362,1723951838580,-10827.6811711,0.00017697,2]
[335186364,1723951838590,-250.0,0.00017743,2]
[335186366,1723951838600,-250.0,0.00017792,2]
[335186368,1723951838609,-168.9404707,0.00017795,2]
[335186370,1723951838619,-250.0,0.0001784,2]
[335186372,1723951838629,-250.0,0.00017888,2]
[335186374,1723951838638,-250.0,0.00017937,2]
[335186376,1723951838648,-250.0,0.00017985,2]
[335186378,1723951838657,-250.0,0.00018034,2]
[335186380,1723951838673,-250.0,0.00018082,2]
[335186382,1723951838682,-250.0,0.0001813,2]
[335186385,1723951838692,-250.0,0.00018179,2]
[335186387,1723951838702,-250.0,0.00018227,2]
[335186389,1723951838711,-250.0,0.00018275,2]
[335186391,1723951838721,-250.0,0.00018324,2]
[335186393,1723951838731,-250.0,0.00018372,2]
[335186395,1723951838741,-500.0,0.00018406,2]
[335186397,1723951838751,-250.0,0.00018421,2]
[335186399,1723951838760,-250.0,0.00018469,2]
[335186401,1723951838771,-250.0,0.00018517,2]
[335186403,1723951838780,-250.0,0.00018566,2]
[335186405,1723951838790,-478.10014535,0.0001861,2]
[335186407,1723951838800,-277.63683817,0.00018647,2]
[335186409,1723951838810,-500.0,0.00018715,2]
[335186411,1723951838819,-494.00935304,0.00018715,2]
[335186413,1723951838828,-500.0,0.00018715,2]
[335186415,1723951838837,-500.0,0.00018715,2]
[335186417,1723951838847,-500.0,0.00018715,2]
[335186419,1723951838856,-500.0,0.00018715,2]
[335186421,1723951838866,-500.0,0.00018715,2]
[335186423,1723951838875,-500.0,0.00018715,2]
[335186425,1723951838885,-4933.19924336,0.00018716,2]
[335186427,1723951838894,-19849.64854892,0.00018903,2]
[335186429,1723951838904,-4933.19924336,0.00018907,2]
[335186432,1723951838913,-153.0,0.00019041,2]
[335186434,1723951838925,-153.0,0.00019041,2]
[335186436,1723951838935,-153.0,0.00019041,2]
[335186438,1723951838944,-173.5949473,0.00019041,2]
[335186440,1723951838953,-153.0,0.000191,2]
[335186442,1723951838963,-206.165543,0.00019178,2]
[335186444,1723951838972,-165.981565,0.00019178,2]
[335186446,1723951838983,-251.0,0.00019178,2]
[335186448,1723951838992,-153.0,0.00019178,2]
[335186450,1723951839002,-153.0,0.00019178,2]
[335186452,1723951839012,-153.0,0.00019178,2]
[335186454,1723951839021,-4933.19924336,0.00019246,2]
[335186456,1723951839031,-153.0,0.000193,2]
[335186458,1723951839040,-153.0,0.000193,2]
[335186460,1723951839050,-153.0,0.000193,2]
[335186462,1723951839060,-153.0,0.000193,2]
[335186464,1723951839069,-153.0,0.000193,2]
[335186466,1723951839079,-500.0,0.00019375,2]
[335186468,1723951839088,-153.0,0.00019378,2]
[335186470,1723951839098,-153.0,0.00019378,2]
[335186472,1723951839108,-420.0,0.00019466,2]
[335186474,1723951839118,-465.65500727,0.00019541,2]
[335186476,1723951839131,-4933.19924338,0.00019591,2]
[335186479,1723951839143,-153.0,0.00019615,2]
[335186481,1723951839152,-211.8831283,0.00019615,2]
[335186483,1723951839162,-155.1266,0.00019618,2]
[335186485,1723951839175,-207.5283979,0.00019618,2]
[335186487,1723951839185,-153.9882082,0.00019618,2]
[335186489,1723951839195,-153.0,0.00019618,2]
[335186491,1723951839205,-153.0,0.00019618,2]
[335186493,1723951839215,-4023.94127984,0.00019793,2]
[335186495,1723951839224,-472.49,0.00019879,3]
[335186497,1723951839233,-236.24,0.00019879,3]
[335186499,1723951839243,-708.77,0.00019879,3]
[335186501,1723951839255,-184.31415493,0.00019888,2]
[335186503,1723951839264,-500.0,0.00019888,2]
[335186505,1723951839274,-304.32935456,0.00019888,2]
[335186507,1723951839284,-500.0,0.00019888,2]
[335186509,1723951839293,-500.0,0.00019888,2]
[335186511,1723951839303,-500.0,0.00019888,2]
[335186513,1723951839312,-500.0,0.00019888,2]
[335186515,1723951839322,-500.0,0.00019888,2]
[335186517,1723951839331,-500.0,0.00019888,2]
[335186519,1723951839341,-226.16883166,0.00019888,2]
[335186521,1723951839350,-500.0,0.00019888,2]
[335186531,1723951839433,-500.0,0.00019888,2]
[335186533,1723951839443,-500.0,0.00019888,2]
[335186535,1723951839452,-335170.0477095,0.00019889,2]
[335186671,1723951840775,-726265.34522791,0.00019889,2]
[335186904,1723951843804,-408.31818216,0.00019888,2]
[335186905,1723951843814,-18012.1117505,0.00019889,2]
[335186911,1723951899140,152.0,5.479e-05,2]
[335186915,1723952016437,184.31853954,0.00014519,2]
[335186917,1723952197970,281.1344621,0.00014519,2]
[335186918,1723952198191,152.0,5.479e-05,2]
[335186920,1723952248259,154.71377951,6.641e-05,2]
[335186922,1723952300761,195.56543893,0.00014519,2]
[335186925,1723952503777,233.37365042,0.00014519,2]
[335186930,1723952637986,200.100016,0.00014247,2]
[335186931,1723952714785,194.47804202,0.00014519,2]
[335186934,1723952795254,-159.703656,0.00018333,2]
[335186935,1723952795276,-41.75978076,0.00018448,2]
[335186936,1723952825087,-1817.59520371,0.00018448,2]
[335186937,1723952831126,-313.91151072,0.00018448,2]
[335186938,1723952835103,-1415.43244571,0.00018448,2]
[335186939,1723952838114,-908.32276561,0.00018448,2]
[335186940,1723952838138,-10.27947236,0.00018448,2]
[335186941,1723952852105,-181.69372754,0.00018448,2]
[335186942,1723952852221,-300.0,0.00018548,2]
[335186943,1723952852249,-143.0916259,0.00018549,2]
[335186958,1723953038399,-300.0,0.00018104,2]
[335186959,1723953038410,-13888.7211217,0.00018105,2]
[335186960,1723953038420,-250.0,0.00018573,2]
[335186961,1723953038430,-250.0,0.00018624,2]
[335186962,1723953038440,-953.29878775,0.00018629,2]
[335186963,1723953038450,-250.0,0.00018675,2]
[335186964,1723953038460,-250.0,0.00018726,2]
[335186965,1723953038469,-250.0,0.00018777,2]
[335186966,1723953038480,-250.0,0.00018828,2]
[335186967,1723953038490,-250.0,0.00018879,2]
[335186968,1723953038500,-250.0,0.0001893,2]
[335186969,1723953038510,-250.0,0.0001898,2]
[335186971,1723953038519,-443.778817,0.0001903,2]
[335186973,1723953038529,-250.0,0.00019031,2]
[335186975,1723953038542,-250.0,0.00019082,2]
[335186977,1723953038553,-250.0,0.00019133,2]
[335186979,1723953038562,-4933.1992433,0.00019144,2]
[335186981,1723953038573,-173.627686,0.00019178,2]
[335186983,1723953038583,-179.476125,0.00019178,2]
[335186985,1723953038592,-251.0,0.00019178,2]
[335186987,1723953038603,-206.165543,0.00019178,2]
[335186989,1723953038613,-250.0,0.00019184,2]
[335186991,1723953038624,-250.0,0.00019235,2]
[335186993,1723953038633,-155.02748706,0.00019272,2]
[335186995,1723953038643,-154.71377951,0.00019272,2]
[335186997,1723953038653,-250.0,0.00019286,2]
[335186999,1723953038663,-4933.1992433,0.00019307,2]
[335187001,1723953038672,-250.0,0.00019337,2]
[335187003,1723953038683,-5244.23039316,0.00019381,2]
[335187005,1723953038693,-250.0,0.00019388,2]
[335187007,1723953038703,-250.0,0.00019439,2]
[335187009,1723953038713,-250.0,0.0001949,2]
[335187011,1723953038724,-250.0,0.00019541,2]
[335187013,1723953038735,-4933.1992435,0.00019654,2]
[335187015,1723953038745,-704.43928014,0.0001979,2]
[335187017,1723953038755,-4023.94127984,0.000198,2]
[335187019,1723953038766,-184.31415493,0.00019857,2]
[335187021,1723953038775,-500.0,0.00019857,2]
[335187024,1723953038786,-304.32935456,0.00019857,2]
[335187026,1723953038797,-500.0,0.00019857,2]
[335187028,1723953038807,-500.0,0.00019857,2]
[335187030,1723953038818,-500.0,0.00019857,2]
[335187032,1723953038828,-500.0,0.00019857,2]
[335187034,1723953038838,-500.0,0.00019857,2]
[335187036,1723953038851,-603.67337701,0.00019857,2]
[335187038,1723953038860,-500.0,0.00019857,2]
[335187041,1723953038872,-500.0,0.00019857,2]
[335187043,1723953038883,-500.0,0.00019857,2]
[335187045,1723953038895,-500.0,0.00019857,2]
[335187055,1723953038979,-11574.31499856,0.00019858,2]
[335187057,1723953038990,-302493.17254224,0.00019889,2]
[335187063,1723953040750,-726265.34522791,0.00019889,2]
[335187070,1723953095516,151.82930901,5.479e-05,2]
[335187071,1723953095538,0.17069099,5.479e-05,2]
[335187072,1723953097327,152.0,5.479e-05,2]
[335187081,1723953231160,308.69761342,0.00014519,2]
[335187088,1723953344813,154.79103211,0.00014519,2]
[335187092,1723953395071,152.0,5.479e-05,2]
[335187095,1723953437793,2309.72069701,0.00014519,3]
[335187096,1723953445648,154.97505076,0.00014519,2]
[335187104,1723953558821,301.50349187,0.00014519,2]
[335187106,1723953603131,950.0,0.00014,2]
[335187110,1723953745129,190.095015,0.00014247,2]
[335187118,1723953807034,4653.59265382,0.00014,2]
[335187121,1723953903103,950.0,0.00014,2]
[335187148,1723953995092,152.0,5.479e-05,2]
[335187150,1723953998527,152.0,5.479e-05,2]
[335187154,1723954026147,-159.703656,0.00018186,2]
[335187155,1723954026169,-870.87722336,0.00018327,2]
[335187160,1723954037094,-155.02748706,0.00017,2]
[335187161,1723954037118,-1338.50434264,0.00018327,2]
[335187162,1723954037141,-150.112233,0.000185,2]
[335187163,1723954037165,-250.0,0.00018749,2]
[335187164,1723954037189,-25.49698775,0.00018801,2]
[335187165,1723954043267,-224.50301225,0.00018801,2]
[335187166,1723954043294,-250.0,0.00018852,2]
[335187167,1723954043325,-250.0,0.00018904,2]
[335187168,1723954043349,-186.83058826,0.00018955,2]
[335187172,1723954051103,-63.16941174,0.00018955,2]
[335187173,1723954051130,-250.0,0.00019006,2]
[335187174,1723954051152,-250.0,0.00019058,2]
[335187175,1723954051175,-106.88440489,0.00019109,2]
[335187186,1723954203119,245.0,0.00014,2]
[335187187,1723954203141,158.9600915,0.00014,2]
[335187188,1723954203167,238.86797128,0.00014,2]
[335187189,1723954203197,157.17193722,0.00014,2]
[335187228,1723954232637,-192.68913932,0.00016438,2]
[335187230,1723954232647,-254.72118684,0.00016603,7]
[335187232,1723954232656,-330.08229703,0.00018462,2]
[335187287,1723954238692,-729.20668237,0.00018462,2]
[335187289,1723954238703,-704.43928014,0.00019009,2]
[335187292,1723954238714,-184.31415493,0.00019107,2]
[335187294,1723954238726,-500.0,0.00019107,2]
[335187296,1723954238736,-304.32935456,0.00019107,2]
[335187298,1723954238747,-500.0,0.00019107,2]
[335187300,1723954238757,-603.67337701,0.00019107,2]
[335187302,1723954238767,-500.0,0.00019107,2]
[335187304,1723954238778,-500.0,0.00019107,2]
[335187306,1723954238788,-500.0,0.00019107,2]
[335187308,1723954238798,-500.0,0.00019107,2]
[335187310,1723954238809,-500.0,0.00019107,2]
[335187313,1723954238819,-500.0,0.00019107,2]
[335187315,1723954238830,-500.0,0.00019107,2]
[335187317,1723954238839,-500.0,0.00019107,2]
[335187319,1723954238849,-341276.0608821,0.00019108,2]
[335187500,1723954240822,-726265.34522791,0.00019108,2]
[335187505,1723954243623,-953.22487542,0.00019108,2]
[335187545,1723954503154,800.0,0.00014,2]
[335187546,1723954518625,242.38397234,0.00014519,2]
[335187552,1723954546874,273.37336231,0.00015001,2]
[335187563,1723954614618,197.45989639,0.00014519,2]
[335187578,1723954668200,214.44427919,0.00014519,2]
[335187582,1723954797214,180.590264,0.00014247,2]
[335187583,1723954803081,800.0,0.00014,2]
[335187616,1723955197428,152.0,5.479e-05,2]
[335187619,1723955230123,-412.1663067,0.00017851,2]
[335187620,1723955230147,-972.9495102,0.00017914,2]
[335187621,1723955230171,-159.703656,0.00017915,2]
[335187622,1723955230192,-162.204175,0.00017997,2]
[335187623,1723955230216,-144.86174799,0.00018243,2]
[335187624,1723955233104,-105.13825201,0.00018243,2]
[335187625,1723955233128,-250.0,0.00018293,2]
[335187626,1723955233152,-250.0,0.00018343,2]
[335187627,1723955233174,-250.0,0.00018393,2]
[335187628,1723955233196,-250.0,0.00018444,2]
[335187629,1723955233221,-35.97058488,0.00018494,2]
[335187632,1723955246104,-214.02941512,0.00018494,2]
[335187633,1723955246128,-250.0,0.00018544,2]
[335187634,1723955246152,-129.40272036,0.00018594,2]
[335187642,1723955254115,-120.59727964,0.00018594,2]
[335187643,1723955254139,-250.0,0.00018644,2]
[335187644,1723955254162,-250.0,0.00018694,2]
[335187645,1723955254186,-250.0,0.00018744,2]
[335187646,1723955254209,-44.71750832,0.00018749,2]
[335187649,1723955337810,300.21774645,0.00015001,2]
[335187651,1723955345660,273.37336231,0.00015001,2]
[335187652,1723955372166,154.71377951,0.00014519,2]
[335187653,1723955374140,-180.5440135,0.000176,2]
[335187657,1723955402177,64.4559865,0.00014519,2]
[335187658,1723955402201,4.24631199,0.00014519,2]
[335187659,1723955402225,86.01148102,0.00014519,2]
[335187683,1723955437733,-250.0,0.00018794,2]
[335187685,1723955437744,-250.0,0.00018844,2]
[335187687,1723955437755,-250.0,0.00018894,2]
[335187689,1723955437766,-250.0,0.00018944,2]
[335187691,1723955437776,-260.8194266,0.00018952,2]
[335187693,1723955437787,-250.0,0.00018994,2]
[335187695,1723955437798,-250.0,0.00019044,2]
[335187697,1723955437808,-250.0,0.00019094,2]
[335187700,1723955437819,-4006.67914097,0.00019109,2]
[335187702,1723955437829,-250.0,0.00019144,2]
[335187704,1723955437840,-300.0,0.00019177,2]
[335187706,1723955437850,-173.627686,0.00019178,2]
[335187708,1723955437860,-183.64432,0.00019178,2]
[335187710,1723955437870,-206.165543,0.00019178,2]
[335187712,1723955437882,-251.0,0.00019178,2]
[335187714,1723955437891,-165.981565,0.00019178,2]
[335187716,1723955437901,-250.0,0.00019194,2]
[335187718,1723955437911,-1110.8112074,0.00019272,2]
[335187720,1723955437921,-4918.29340726,0.00019445,2]
[335187722,1723955437930,-465.65500727,0.00019492,2]
[335187724,1723955437940,-158.036931,0.000197,2]
[335187726,1723955437949,-304.83,0.0001975,2]
[335187728,1723955437958,-500.0,0.0001975,2]
[335187730,1723955437967,-4094.11523212,0.00019786,2]
[335187732,1723955437977,-100664.16900915,0.000198,2]
[335187734,1723955437987,-150.112233,0.000198,2]
[335187736,1723955437996,-4023.94127984,0.000198,2]
[335187738,1723955438005,-500.0,0.000198,2]
[335187740,1723955438015,-443.778817,0.00019834,2]
[335187742,1723955438024,-11574.31499856,0.00019835,2]
[335187744,1723955438034,-166.9914272,0.00019886,2]
[335187746,1723955438043,-203.64065645,0.00019888,2]
[335187748,1723955438052,-5992.49293948,0.00019888,2]
[335187750,1723955438061,-472.49,0.0001989,3]
[335187752,1723955438070,-236.24,0.0001989,3]
[335187754,1723955438080,-708.77,0.0001989,3]
[335187756,1723955438089,-160.0,0.00019893,3]
[335187758,1723955438098,-184.31415493,0.00019898,2]
[335187760,1723955438107,-304.32935456,0.00019898,2]
[335187762,1723955438116,-500.0,0.00019898,2]
[335187764,1723955438125,-500.0,0.00019898,2]
[335187766,1723955438135,-500.0,0.00019898,2]
[335187768,1723955438143,-500.0,0.00019898,2]
[335187770,1723955438153,-500.0,0.00019898,2]
[335187772,1723955438162,-500.0,0.00019898,2]
[335187774,1723955438172,-603.67337701,0.00019898,2]
[335187776,1723955438181,-500.0,0.00019898,2]
[335187778,1723955438192,-500.0,0.00019898,2]
[335187780,1723955438201,-500.0,0.00019898,2]
[335187782,1723955438214,-202210.18362206,0.00019899,2]
[335187852,1723955440054,-726265.34522791,0.00019899,2]
[335187853,1723955442919,-4.50067736,0.00019888,2]
[335187884,1723955829091,179.493078,0.00014247,2]
[335187888,1723955839147,158.58869617,0.00014519,2]
[335187897,1723955903757,165.77081443,0.00014519,2]
[335187898,1723955914218,2151.16247841,0.00014519,2]
[335187899,1723955933533,1100.52312279,0.00014519,2]
[335187917,1723956425102,-313.91151072,0.0001745,2]
[335187918,1723956434117,-1821.02422293,0.0001745,2]
[335187920,1723956446128,-621.65003164,0.0001745,2]
[335187921,1723956447124,-918.27349297,0.0001745,2]
[335187923,1723956454114,-780.40266749,0.0001745,2]
[335187924,1723956454142,-191.9731999,0.0001755,2]
[335187925,1723956454167,-312.15884457,0.0001765,3]
[335187926,1723956454192,-326.88504802,0.00018115,2]
[335187999,1723956637817,-815.567647,0.00018086,2]
[335188001,1723956637827,-159.7036575,0.0001812,2]
[335188003,1723956637837,-162.204175,0.00018491,2]
[335188005,1723956637846,-720.1931654,0.00018507,2]
[335188007,1723956637856,-250.0,0.0001854,2]
[335188009,1723956637867,-250.0,0.00018591,2]
[335188011,1723956637877,-154.71377951,0.00018612,2]
[335188013,1723956637887,-250.0,0.00018642,2]
[335188015,1723956637896,-250.0,0.00018692,2]
[335188017,1723956637905,-250.0,0.00018743,2]
[335188018,1723956637914,-250.0,0.00018794,2]
[335188019,1723956637923,-250.0,0.00018845,2]
[335188020,1723956637932,-250.0,0.00018896,2]
[335188022,1723956637941,-250.0,0.00018947,2]
[335188024,1723956637950,-250.0,0.00018998,2]
[335188026,1723956637959,-250.0,0.00019048,2]
[335188028,1723956637968,-300.0,0.00019086,2]
[335188029,1723956637977,-5136.00489534,0.00019087,2]
[335188030,1723956637986,-250.0,0.00019099,2]
[335188031,1723956637998,-250.0,0.0001915,2]
[335188032,1723956638007,-170.882409,0.00019178,2]
[335188033,1723956638016,-251.0,0.00019178,2]
[335188034,1723956638025,-183.64432,0.00019178,2]
[335188035,1723956638034,-250.0,0.00019201,2]
[335188036,1723956638043,-4011.30506019,0.00019217,2]
[335188038,1723956638067,-1124.69983515,0.00019217,2]
[335188039,1723956638076,-250.0,0.00019252,2]
[335188041,1723956638085,-250.0,0.00019303,2]
[335188044,1723956638095,-250.0,0.00019354,2]
[335188046,1723956638104,-250.0,0.00019404,2]
[335188047,1723956638114,-150.73169166,0.00019429,2]
[335188049,1723956638124,-477.75965827,0.00019432,2]
[335188051,1723956638136,-37.97174027,0.00019455,2]
[335188145,1723956642969,-212.02825973,0.00019455,2]
[335188146,1723956642978,-250.0,0.00019506,2]
[335188147,1723956642988,-5136.00489535,0.00019657,2]
[335188148,1723956642998,-500.0,0.000198,2]
[335188149,1723956643007,-443.778817,0.00019887,2]
[335188150,1723956643016,-10022.85249417,0.00019888,2]
[335188151,1723956643026,-184.31415493,0.00019888,2]
[335188152,1723956643036,-304.32935456,0.00019888,2]
[335188153,1723956643045,-500.0,0.00019888,2]
[335188155,1723956643055,-500.0,0.00019888,2]
[335188157,1723956643065,-500.0,0.00019888,2]
[335188158,1723956643074,-500.0,0.00019888,2]
[335188159,1723956643084,-149.31800246,0.00019888,2]
[335188173,1723956696134,152.0,5.479e-05,2]
[335188174,1723956697966,93.0,5.479e-05,2]
[335188175,1723956697990,59.0,5.479e-05,2]
[335188193,1723956920932,170.518424,0.00014247,2]
[335188195,1723956955519,155.18970452,6.641e-05,2]
[335188196,1723957002206,273.37336231,0.00015001,2]
[335188197,1723957010155,273.37336231,0.00015001,2]
[335188208,1723957185862,506.35601428,0.00014519,2]
[335188210,1723957226356,289.74996651,0.00014519,2]
[335188211,1723957243248,462.88062007,0.00014519,2]
[335188212,1723957253720,154.91915221,0.00014519,2]
[335188213,1723957256559,155.05270344,0.00014519,2]
[335188214,1723957263067,522.58998754,0.00014519,2]
[335188215,1723957268551,155.19039629,0.00014519,2]
[335188216,1723957295825,388.45594175,0.00014519,2]
[335188222,1723957426566,521.06353975,0.00014519,2]
[335188226,1723957468897,273.37336231,0.00015001,2]
[335188227,1723957484436,273.37336231,0.00015001,2]
[335188228,1723957500373,273.37336231,0.00015001,2]
[335188229,1723957544762,273.37336231,0.00015001,2]
[335188230,1723957560736,273.37336231,0.00015001,2]
[335188231,1723957576228,273.37336231,0.00015001,2]
[335188232,1723957592405,273.37336231,0.00015001,2]
[335188233,1723957607791,273.37336231,0.00015001,2]
[335188234,1723957623521,273.37336231,0.00015001,2]
[335188235,1723957624596,367.71873975,0.00014519,2]
[335188236,1723957628208,-155.02748706,0.00017533,2]
[335188237,1723957628230,-154.71377951,0.00017825,2]
[335188238,1723957628252,-300.0,0.00018182,2]
[335188239,1723957628272,-154.96958002,0.00018183,2]
[335188240,1723957628294,-147.31674317,0.00018183,2]
[335188242,1723957634129,-407.3743835,0.00018183,2]
[335188243,1723957634151,-533.88644737,0.00018183,2]
[335188244,1723957634172,-525.46046227,0.00018183,2]
[335188245,1723957634193,-189.67933349,0.00018183,2]
[335188246,1723957634215,-159.08225181,0.00018183,2]
[335188247,1723957634237,-93.84648926,0.00018406,2]
[335188248,1723957638738,273.37336231,0.00015001,2]
[335188249,1723957645105,-65.85716674,0.00018406,2]
[335188250,1723957645128,-250.0,0.00018846,2]
[335188251,1723957645153,-250.0,0.00018897,2]
[335188252,1723957645176,-99.35627139,0.00018949,2]
[335188253,1723957646102,-150.64372861,0.00018949,2]
[335188254,1723957646126,-250.0,0.00019001,2]
[335188255,1723957646149,-250.0,0.00019052,2]
[335188256,1723957646172,-250.0,0.00019104,2]
[335188257,1723957646194,-250.0,0.00019156,2]
[335188258,1723957646215,-165.981565,0.00019178,2]
[335188259,1723957646237,-80.89309571,0.00019207,2]
[335188262,1723957654532,273.37336231,0.00015001,2]
[335188263,1723957669808,273.37336231,0.00015001,2]
[335188265,1723957686284,273.37336231,0.00015001,2]
[335188268,1723957703161,273.37336231,0.00015001,2]
[335188269,1723957718408,273.37336231,0.00015001,2]
[335188270,1723957735000,273.37336231,0.00015001,2]
[335188271,1723957750554,273.37336231,0.00015001,2]
[335188273,1723957765995,158.9600915,0.00015001,2]
[335188274,1723957766018,114.41327081,0.00015001,2]
[335188275,1723957796374,245.0,0.00015001,2]
[335188276,1723957796396,32.7826143,0.00015001,2]
[335188277,1723957811883,50.23828291,0.00015001,2]
[335188278,1723957811910,223.1350794,0.00015001,2]
[335188279,1723957827340,273.37336231,0.00015001,2]
[335188339,1723957842936,273.37336231,0.00015001,2]
[335188396,1723957864406,440.93691464,0.00014519,2]
[335188397,1723957869433,154.99671597,0.00014519,2]
[335188398,1723957872418,414.94461519,0.00014519,2]
[335188399,1723957874370,155.56838858,0.00014519,2]
[335188400,1723957874828,154.88768318,0.00014519,2]
[335188405,1723957883802,2199.21644118,0.00015001,2]
[335188406,1723957885411,935.82941759,0.00014519,2]
[335188407,1723957886772,512.72631408,0.00014519,2]
[335188408,1723957889454,408.92946582,0.00014519,2]
[335188409,1723957890325,711.43806163,0.00014519,2]
[335188410,1723957895802,155.0558486,0.00014519,2]
[335188416,1723957931797,1366.86681155,0.00015001,2]
[335188421,1723957947127,273.37336231,0.00015001,2]
[335188424,1723957962714,273.37336231,0.00015001,2]
[335188425,1723957966639,247.01578476,0.00014519,2]
[335188426,1723957978212,273.37336231,0.00015001,2]
[335188427,1723957993755,273.37336231,0.00015001,2]
[335188428,1723957998643,1670.74719108,0.00015001,2]
[335188430,1723958006809,154.71377951,0.00014519,2]
[335188432,1723958010059,273.37336231,0.00015001,2]
[335188433,1723958017077,357.3169041,0.00014519,2]
[335188439,1723958021817,154.71377951,0.00014519,2]
[335188440,1723958026420,273.37336231,0.00015001,2]
[335188441,1723958042559,273.37336231,0.00015001,2]
[335188442,1723958058460,273.37336231,0.00015001,2]
[335188443,1723958074350,242.96137698,0.00014519,2]
[335188444,1723958075571,546.74672462,0.00015001,2]
[335188445,1723958091704,273.37336231,0.00015001,2]
[335188446,1723958123208,273.37336231,0.00015001,2]
[335188447,1723958124319,154.71377951,0.00014519,2]
[335188448,1723958139160,154.97517482,0.00015001,2]
[335188451,1723958208410,170.040211,0.00014247,2]
[335188452,1723958213322,155.02278991,0.00014519,2]
[335188463,1723958422433,154.79103211,0.00014519,2]
[335188485,1723958827146,-162.204175,0.00016338,2]
[335188486,1723958827168,-250.0,0.00016347,2]
[335188487,1723958827190,-250.0,0.00016391,2]
[335188488,1723958827213,-250.0,0.00016436,2]
[335188489,1723958827234,-250.0,0.00016481,2]
[335188490,1723958827255,-150.52937463,0.00016526,2]
[335188494,1723958842145,-914.98606814,0.0001578,2]
[335188495,1723958847109,-600.61026575,0.0001578,2]
[335188496,1723958847138,-1010.98563501,0.0001578,2]
[335188497,1723958847160,-99.47062537,0.00016526,2]
[335188498,1723958847182,-250.0,0.00016571,2]
[335188499,1723958847203,-250.0,0.00016616,2]
[335188500,1723958847226,-247.17353269,0.0001666,2]
[335188504,1723958900362,215.58722117,0.00014519,2]
[335188505,1723958907564,273.37336231,0.00015001,2]
[335188506,1723958916019,182.70699478,0.00015001,2]
[335188507,1723958947106,-2.82646731,0.0001666,2]
[335188508,1723958947131,-215.4239492,0.00016705,2]
[335188509,1723958963162,-34.5760508,0.00016705,2]
[335188510,1723958963184,-117.42341583,0.00016744,2]
[335188512,1723958966106,-444.88479791,0.00016744,2]
[335188513,1723958966130,-61.60689425,0.0001675,2]
[335188514,1723958975650,273.37336231,0.00015001,2]
[335188517,1723958991203,273.37336231,0.00015001,2]
[335188520,1723959006408,220.81104699,0.00015001,2]
[335188522,1723959021984,273.37336231,0.00015001,2]
[335188570,1723959032407,-188.39310575,0.0001675,2]
[335188572,1723959032417,-250.0,0.00016795,2]
[335188574,1723959032427,-2294.0157818,0.00016799,2]
[335188583,1723959032502,-1042.71506763,0.00016799,2]
[335188585,1723959032514,-868.49,0.00016799,2]
[335188587,1723959032528,-927.70752071,0.00016799,2]
[335188589,1723959032538,-250.0,0.0001684,2]
[335188591,1723959032548,-300.0,0.00016844,2]
[335188593,1723959032558,-300.0,0.00016844,2]
[335188595,1723959032568,-832.84103233,0.00016845,2]
[335188671,1723959038208,-24067.15896767,0.00016845,2]
[335188672,1723959038221,-250.0,0.00016884,2]
[335188673,1723959038232,-500.0,0.00016898,2]
[335188674,1723959038244,-500.0,0.00016898,2]